fUST/lending_fUST_20250727
["ID","MTS","AMOUNT","RATE_DAILY","PERIOD"]
[375160298,1753558250764,-1044.8,0.00024828,2]
[375160299,1753558250775,-460.0,0.00024828,2]
[375160300,1753558250785,-460.0,0.00024828,2]
[375160301,1753558250798,-1586.95,0.00024828,2]
[375160302,1753558250807,-605.95,0.00024828,2]
[375160303,1753558250817,-676.8,0.00024829,2]
[375160304,1753558250826,-171.22213563,0.0002483,2]
[375160305,1753558250836,-9112.39,0.00024833,10]
[375160306,1753558250845,-179.97,0.00024833,10]
[375160307,1753558250855,-1230.20703747,0.00024851,2]
[375160308,1753558250866,-2452.62041331,0.00024861,2]
[375160309,1753558250877,-500.0,0.00024861,2]
[375160310,1753558250887,-76562.8406976,0.00024861,2]
[375160311,1753558250899,-156.418633,0.000249,30]
[375160312,1753558250909,-263.170018,0.000249,7]
[375160313,1753558250919,-5564.6726302,0.000249,2]
[375160314,1753558250928,-216.761087,0.000249,7]
[375160315,1753558250937,-216.761087,0.000249,7]
[375160316,1753558250947,-471152.34063786,0.000249,2]
[375160317,1753558251028,460.0,0.00019896,2]
[375160318,1753558254808,460.0,0.00019622,2]
[375160319,1753558254835,460.0,0.00019447,2]
[375160320,1753558254913,460.0,0.00019622,2]
[375160321,1753558256529,462.51698105,0.00019622,2]
[375160322,1753558259083,460.0,0.00019622,2]
[375160323,1753558259113,460.0,0.00019622,2]
[375160324,1753558259362,460.0,0.00019896,2]
[375160325,1753558259729,460.0,0.00019896,2]
[375160326,1753558260404,851.2,0.00019447,2]
[375160327,1753558260826,420.28837773,0.00019622,2]
[375160328,1753558260855,460.0,0.00019446,2]
[375160329,1753558260890,41.37598015,0.000201,2]
[375160330,1753558260913,4958.62401985,0.000201,2]
[375160331,1753558260942,851.2,0.00019721,2]
[375160332,1753558261187,460.0,0.0001972,2]
[375160333,1753558261462,851.2,0.00019995,2]
[375160334,1753558261779,460.0,0.00019622,2]
[375160335,1753558261969,460.0,0.00019994,2]
[375160336,1753558265594,460.0,0.00019622,2]
[375160337,1753558265842,460.0,0.00019896,2]
[375160338,1753558269196,178.34617332,0.00020069,2]
[375160339,1753558269929,420.16668437,0.00019447,2]
[375160340,1753558270862,440.46312246,0.00019438,2]
[375160341,1753558270885,19.53687754,0.00019438,2]
[375160342,1753558271062,460.0,0.00019622,2]
[375160343,1753558271135,460.0,0.00019712,2]
[375160344,1753558276539,5000.0,0.000201,2]
[375160345,1753558277233,460.0,0.00019622,2]
[375160346,1753558277494,460.0,0.00019896,2]
[375160347,1753558278008,460.0,0.00019622,2]
[375160348,1753558278281,150.0,0.00019468,2]
[375160349,1753558280151,460.0,0.00019622,2]
[375160350,1753558280522,460.0,0.00019622,2]
[375160351,1753558280746,460.0,0.00019896,2]
[375160352,1753558282710,150.0,0.00020257,30]
[375160353,1753558283118,150.0,0.00022099,30]
[375160354,1753558284157,460.0,0.00019622,2]
[375160355,1753558284402,222.70380106,0.00019896,2]
[375160356,1753558285486,460.0,0.00019622,2]
[375160357,1753558285748,7.7593214,0.00019896,2]
[375160358,1753558285772,452.2406786,0.00019896,2]
[375160359,1753558288457,460.0,0.00019622,2]
[375160360,1753558290577,460.0,0.00019622,2]
[375160361,1753558290826,460.0,0.00019896,2]
[375160362,1753558291843,5000.0,0.000201,2]
[375160363,1753558293558,480.24,0.00019622,2]
[375160364,1753558293807,480.24,0.00019896,2]
[375160365,1753558294189,460.0,0.00019622,2]
[375160366,1753558294386,460.0,0.00019622,2]
[375160367,1753558294415,460.0,0.00019622,2]
[375160368,1753558301835,827.2793214,0.00019346,2]
[375160369,1753558301858,9172.7206786,0.00019346,2]
[375160370,1753558303837,460.0,0.00019447,2]
[375160371,1753558304758,367.2793214,0.00019622,2]
[375160372,1753558304780,92.7206786,0.00019622,2]
[375160373,1753558305085,522.68,0.0001945,2]
[375160374,1753558305867,522.68,0.00019724,2]
[375160375,1753558306244,460.0,0.00019622,2]
[375160376,1753558306290,522.68,0.00019998,2]
[375160377,1753558306620,460.0,0.00019622,2]
[375160378,1753558306867,460.0,0.00019896,2]
[375160379,1753558307450,5000.0,0.000201,2]
[375160380,1753558308716,460.0,0.00019622,2]
[375160381,1753558308946,391.97474641,0.00019896,2]
[375160382,1753558309404,622.97048998,0.0002007,3]
[375160383,1753558310616,460.0,0.00019622,2]
[375160384,1753558311023,24.29408501,0.00019622,2]
[375160385,1753558311045,435.70591499,0.00019622,2]
[375160386,1753558313812,460.0,0.00019622,2]
[375160387,1753558322392,-460.0,0.00019896,2]
[375160388,1753558323654,5000.0,0.00019623,2]
[375160389,1753558325789,426.18318,0.00019563,2]
[375160390,1753558326163,1041.505401,0.00019565,2]
[375160391,1753558326534,460.0,0.00019622,2]
[375160392,1753558326737,966.76456048,0.00019651,2]
[375160393,1753558327007,284.23491224,0.00019896,2]
[375160394,1753558331741,460.0,0.00019622,2]
[375160395,1753558331901,441.31194628,0.00020068,2]
[375160396,1753558331923,1287.05876633,0.00020068,2]
[375160397,1753558334666,502.71767957,0.00019447,2]
[375160398,1753558335727,907.12,0.00019446,2]
[375160399,1753558336844,907.12,0.0001972,2]
[375160400,1753558337330,907.12,0.00019994,2]
[375160401,1753558339085,5000.0,0.000201,2]
[375160402,1753558343230,460.0,0.00019622,2]
[375160403,1753558354005,28.8635541,0.00019622,2]
[375160404,1753558354028,431.1364459,0.00019622,2]
[375160405,1753558354199,460.0,0.00019896,2]
[375160406,1753558355445,5000.0,0.000201,2]
[375160407,1753558355824,1741.516192,0.00019274,2]
[375160408,1753558357767,150.0,0.00019487,2]
[375160409,1753558357930,460.0,0.00019622,2]
[375160410,1753558358123,460.0,0.00019896,2]
[375160411,1753558359989,460.0,0.00019622,2]
[375160412,1753558360240,460.0,0.00019896,2]
[375160413,1753558365945,377.3473621,0.00019622,2]
[375160414,1753558365967,86.4426379,0.00019622,2]
[375160415,1753558366173,463.79,0.00019896,2]
[375160416,1753558372021,5000.0,0.000201,2]
[375160417,1753558373502,460.0,0.00019622,2]
[375160418,1753558379211,460.0,0.00019622,2]
[375160419,1753558379454,460.0,0.00019896,2]
[375160420,1753558383353,460.0,0.00019446,2]
[375160421,1753558383576,462.99,0.0001972,2]
[375160422,1753558384469,460.0,0.00019436,2]
[375160423,1753558384911,585.06,0.0001971,2]
[375160424,1753558387745,1101.7173621,0.000201,2]
[375160425,1753558387770,3898.2826379,0.000201,2]
[375160426,1753558389755,477.33360268,0.00019622,2]
[375160427,1753558398941,460.0,0.0001945,2]
[375160428,1753558399317,460.0,0.00019724,2]
[375160429,1753558399893,460.0,0.00019998,2]
[375160430,1753558402841,4244.38375942,0.000201,2]
[375160431,1753558402866,755.61624058,0.000201,2]
[375160432,1753558402975,460.0,0.00019622,2]
[375160433,1753558403214,398.77,0.00019896,2]
[375160434,1753558404138,475.19478084,0.00019622,2]
[375160435,1753558409329,460.0,0.00019447,2]
[375160436,1753558409623,462.69739602,0.00019622,2]
[375160437,1753558409745,460.0,0.00019721,2]
[375160438,1753558409774,460.0,0.00019622,2]
[375160439,1753558410334,460.0,0.00019896,2]
[375160440,1753558413664,156.4720611,0.0002007,2]
[375160441,1753558414764,460.0,0.00019446,2]
[375160442,1753558416757,460.0,0.0001972,2]
[375160443,1753558418435,4531.24952146,0.000201,2]
[375160444,1753558418458,468.75047854,0.000201,2]
[375160445,1753558418506,494.83,0.00019622,2]
[375160446,1753558418919,494.83,0.00019896,2]
[375160447,1753558427760,460.0,0.00019622,2]
[375160448,1753558430573,157.16448426,7.1e-07,2]
[375160449,1753558430777,157.16448426,7.1e-07,2]
[375160450,1753558431051,157.16448426,7.1e-07,2]
[375160451,1753558431188,157.16448426,7.1e-07,2]
[375160452,1753558431301,157.16448426,7.1e-07,2]
[375160453,1753558431407,157.16448426,7.1e-07,2]
[375160454,1753558431507,157.16448426,7.1e-07,2]
[375160455,1753558431607,157.16448426,7.1e-07,2]
[375160456,1753558431714,157.16448426,7.1e-07,2]
[375160457,1753558431815,157.16448426,7.1e-07,2]
[375160458,1753558431897,464.84625056,0.00019622,2]
[375160459,1753558432283,460.0,0.00019447,2]
[375160460,1753558432917,460.0,0.00019721,2]
[375160461,1753558433880,460.0,0.00019995,2]
[375160462,1753558434112,4665.0984283,0.000201,2]
[375160463,1753558434135,334.9015717,0.000201,2]
[375160464,1753558438249,150.0,0.00019437,2]
[375160465,1753558439404,464.10674552,0.00019622,2]
[375160466,1753558441143,150.64202068,0.0002007,2]
[375160467,1753558442550,150.0,0.00021082,30]
[375160468,1753558443314,166.0,0.00019282,2]
[375160469,1753558443485,150.0,0.00022999,30]
[375160470,1753558443951,435.23951506,0.00019622,2]
[375160471,1753558446510,460.0,0.00019622,2]
[375160472,1753558450317,5000.0,0.000201,2]
[375160474,1753558450984,460.0,0.00019622,2]
[375160475,1753558452111,460.0,0.00019447,2]
[375160476,1753558454162,464.13273388,0.00019622,2]
[375160477,1753558455713,460.0,0.00019447,2]
[375160478,1753558456236,460.0,0.00019622,2]
[375160479,1753558456474,460.0,0.00019896,2]
[375160480,1753558456938,74.97741316,0.00019622,2]
[375160481,1753558456960,385.02258684,0.00019622,2]
[375160482,1753558458582,531.55,0.00019622,2]
[375160483,1753558458831,531.55,0.00019896,2]
[375160484,1753558462352,793.73,0.00019436,2]
[375160485,1753558462748,793.73,0.0001971,2]
[375160486,1753558463234,793.73,0.00019984,2]
[375160487,1753558465348,5000.0,0.000201,2]
[375160488,1753558466087,250.0,0.00018999,2]
[375160489,1753558466456,460.0,0.00019622,2]
[375160490,1753558466702,460.0,0.00019896,2]
[375160491,1753558468299,0.68741316,0.00019622,2]
[375160492,1753558468323,459.31258684,0.00019622,2]
[375160493,1753558468578,460.0,0.00019896,2]
[375160494,1753558468725,460.0,0.00019622,2]
[375160495,1753558468969,460.0,0.00019896,2]
[375160496,1753558477330,212.11369505,0.0002007,2]
[375160497,1753558478519,460.0,0.00019622,2]
[375160498,1753558478795,460.0,0.00019896,2]
[375160499,1753558479472,460.0,0.00019447,2]
[375160500,1753558479986,460.0,0.00019721,2]
[375160501,1753558481165,460.0,0.00019995,2]
[375160502,1753558481497,5000.0,0.000201,2]
[375160503,1753558494125,460.0,0.00019622,2]
[375160504,1753558494374,188.57371811,0.00019896,2]
[375160505,1753558494398,271.42628189,0.00019896,2]
[375160506,1753558498271,5000.0,0.000201,2]
[375160507,1753558498358,460.0,0.00019622,2]
[375160508,1753558498600,460.0,0.00019622,2]
[375160509,1753558498688,460.0,0.00019896,2]
[375160510,1753558503155,1105.0,0.00017,2]
[375160511,1753558503543,460.0,0.00019446,2]
[375160512,1753558503848,460.0,0.0001972,2]
[375160513,1753558503891,703.01,0.00019622,2]
[375160514,1753558504279,620.56371811,0.00019896,2]
[375160515,1753558504304,82.44628189,0.00019896,2]
[375160516,1753558505234,460.0,0.00019622,2]
[375160517,1753558505502,1345.51840693,0.00017,2]
[375160518,1753558511411,150.64202068,0.0002007,2]
[375160519,1753558513627,460.0,0.00019622,2]
[375160520,1753558513953,5000.0,0.000201,2]
[375160521,1753558514085,255.0,0.00020001,2]
[375160522,1753558517423,150.0,0.00019455,2]
[375160523,1753558517777,460.0,0.00019622,2]
[375160524,1753558521629,227.99103924,0.00019622,2]
[375160525,1753558526378,461.73592332,0.00019446,2]
[375160526,1753558529125,946.66632794,0.000201,2]
[375160527,1753558529149,4053.33367206,0.000201,2]
[375160528,1753558531520,460.0,0.00019622,2]
[375160529,1753558536030,526.0762031,0.00019622,2]
[375160530,1753558538123,214.24675925,0.00019622,2]
[375160531,1753558542215,460.0,0.00019622,2]
[375160532,1753558542838,460.0,0.00019622,2]
[375160533,1753558543652,744.8,0.00019446,2]
[375160534,1753558544380,460.0,0.00019446,2]
[375160535,1753558544409,2621.54336559,0.000201,2]
[375160536,1753558544435,2378.45663441,0.000201,2]
[375160537,1753558544467,744.8,0.0001972,2]
[375160538,1753558544562,462.1,0.0001972,2]
[375160539,1753558545009,744.8,0.00019994,2]
[375160540,1753558545859,212.11369505,0.0002007,2]
[375160541,1753558559717,5000.0,0.000201,2]
[375160542,1753558562723,457.72967054,0.00019622,2]
[375160543,1753558562749,2.27032946,0.00019622,2]
[375160544,1753558562947,460.0,0.00019896,2]
[375160545,1753558565209,460.0,0.00019446,2]
[375160546,1753558567092,460.0,0.00019447,2]
[375160547,1753558567138,460.0,0.00019446,2]
[375160548,1753558567353,460.0,0.00019721,2]
[375160549,1753558568105,460.0,0.00019995,2]
[375160550,1753558568715,460.0,0.00019622,2]
[375160551,1753558569409,460.0,0.00019446,2]
[375160552,1753558571985,451.2366515,0.00019622,2]
[375160553,1753558575588,5000.0,0.000201,2]
[375160554,1753558579323,150.64202068,0.0002007,2]
[375160555,1753558580533,644.42,0.00019622,2]
[375160556,1753558580933,71.43099836,0.00019446,2]
[375160557,1753558580955,388.56900164,0.00019446,2]
[375160558,1753558581022,644.42,0.00019896,2]
[375160559,1753558581277,460.0,0.0001972,2]
[375160560,1753558585068,460.0,0.00019446,2]
[375160561,1753558590654,5000.0,0.000201,2]
[375160562,1753558591618,460.0,0.00019622,2]
[375160563,1753558591884,460.0,0.00019896,2]
[375160564,1753558592830,460.0,0.00019622,2]
[375160565,1753558594107,510.03144465,0.00019622,2]
[375160566,1753558602088,460.0,0.00019622,2]
[375160567,1753558602351,345.83165487,0.00019896,2]
[375160568,1753558604558,150.0,0.00019423,2]
[375160569,1753558605818,201.14789884,0.000201,2]
[375160570,1753558605840,4798.85210116,0.000201,2]
[375160571,1753558608400,460.0,0.00019622,2]
[375160572,1753558608644,459.82969994,0.00019896,2]
[375160573,1753558609365,460.0,0.00019622,2]
[375160574,1753558609414,150.0,0.00021008,30]
[375160575,1753558609801,150.0,0.00022917,30]
[375160576,1753558610516,460.0,0.00019622,2]
[375160577,1753558614830,500.0,0.00019622,2]
[375160578,1753558615070,411.20628376,0.00019622,2]
[375160579,1753558619089,460.0,0.00019622,2]
[375160580,1753558619161,460.0,0.00019622,2]
[375160581,1753558619720,460.0,0.00019896,2]
[375160582,1753558621755,1070.11191514,0.000201,2]
[375160583,1753558621803,3929.88808486,0.000201,2]
[375160584,1753558628013,503.510634,0.00019565,2]
[375160585,1753558628334,165.881865,0.0001965,2]
[375160586,1753558628696,544.27526903,0.00019651,2]
[375160587,1753558628729,532.61776725,0.00019622,2]
[375160588,1753558630579,460.0,0.00019622,2]
[375160589,1753558631002,460.0,0.00019622,2]
[375160590,1753558631231,460.0,0.00019896,2]
[375160591,1753558633280,560.80623138,0.00019622,2]
[375160592,1753558637083,2383.02014848,0.000201,2]
[375160593,1753558637109,2616.97985152,0.000201,2]
[375160594,1753558639166,460.0,0.00019622,2]
[375160595,1753558639616,460.0,0.00019896,2]
[375160596,1753558639646,460.0,0.00019622,2]
[375160597,1753558639845,460.0,0.00019896,2]
[375160598,1753558642217,480.06554279,0.00019622,2]
[375160599,1753558644025,460.0,0.00019622,2]
[375160600,1753558644279,460.0,0.00019896,2]
[375160601,1753558648690,460.0,0.00019446,2]
[375160602,1753558648934,425.29073944,0.0001972,2]
[375160603,1753558651118,651.7,0.00019436,2]
[375160604,1753558651719,651.7,0.0001971,2]
[375160605,1753558652074,651.7,0.00019984,2]
[375160606,1753558652830,1302.56386625,0.000201,2]
[375160607,1753558652854,3697.43613375,0.000201,2]
[375160608,1753558653962,332.78981045,0.00019622,2]
[375160609,1753558659757,191.64785819,0.00019622,2]
[375160610,1753558666316,460.0,0.00019622,2]
[375160611,1753558667947,5000.0,0.000201,2]
[375160612,1753558676200,318.12619761,0.00019622,2]
[375160613,1753558676222,141.87380239,0.00019622,2]
[375160614,1753558677518,215.41042809,0.0002007,2]
[375160615,1753558678076,460.0,0.00019622,2]
[375160616,1753558678232,150.64202068,0.0002007,2]
[375160617,1753558678327,460.0,0.00019896,2]
[375160618,1753558678557,460.0,0.00019447,2]
[375160619,1753558679036,460.0,0.00019721,2]
[375160620,1753558680034,460.0,0.00019995,2]
[375160621,1753558683616,5000.0,0.000201,2]
[375160622,1753558687779,150.0,0.0001946,2]
[375160623,1753558692059,460.79259234,0.00019446,2]
[375160624,1753558694212,460.0,0.00019622,2]
[375160625,1753558694689,460.0,0.00019896,2]
[375160626,1753558694974,460.0,0.00019622,2]
[375160627,1753558699142,201.2811565,0.000201,2]
[375160628,1753558699167,4798.7188435,0.000201,2]
[375160629,1753558701015,463.61750273,0.00019622,2]
[375160630,1753558702145,500.0,0.00019622,2]
[375160631,1753558702408,500.0,0.00019622,2]
[375160632,1753558702641,500.0,0.00019623,2]
[375160633,1753558702871,500.0,0.00019623,2]
[375160634,1753558703158,513.26568702,0.00019623,2]
[375160635,1753558710767,464.95798481,0.00019622,2]
[375160636,1753558714688,1759.43998194,0.000201,2]
[375160637,1753558714712,3240.56001806,0.000201,2]
[375160638,1753558724951,543.97097694,0.00019446,2]
[375160639,1753558726413,460.0,0.00019622,2]
[375160640,1753558730834,5000.0,0.000201,2]
[375160641,1753558734937,460.0,0.00019622,2]
[375160642,1753558737104,295.469005,0.00019446,2]
[375160643,1753558737127,168.03958352,0.00019446,2]
[375160644,1753558743089,460.0,0.00019446,2]
[375160645,1753558743943,460.0,0.0001972,2]
[375160646,1753558744432,460.0,0.00019994,2]
[375160647,1753558745243,460.0,0.00019622,2]
[375160648,1753558746940,953.16067144,0.000201,2]
[375160649,1753558746987,460.0,0.00019622,2]
[375160650,1753558750080,460.0,0.00019622,2]
[375160651,1753558750561,460.0,0.00019896,2]
[375160652,1753558757071,460.0,0.00019622,2]
[375160653,1753558765701,460.0,0.00019446,2]
[375160654,1753558769051,150.0,0.00019404,2]
[375160655,1753558770221,460.0,0.00019446,2]
[375160656,1753558771154,460.0,0.00019622,2]
[375160657,1753558772392,460.0,0.00019446,2]
[375160658,1753558774181,441.58925699,0.00019446,2]
[375160659,1753558781132,460.0,0.00019622,2]
[375160660,1753558784061,460.0,0.00019446,2]
[375160661,1753558784363,460.0,0.0001972,2]
[375160662,1753558785658,449.06,0.00019446,2]
[375160663,1753558791166,460.0,0.00019447,2]
[375160664,1753558792297,460.0,0.00019622,2]
[375160665,1753558792573,18.15048805,0.00019896,2]
[375160666,1753558792597,441.84951195,0.00019896,2]
[375160667,1753558792822,215.41042808,0.0002007,2]
[375160668,1753558794376,460.0,0.00019446,2]
[375160669,1753558795168,460.0,0.00019622,2]
[375160670,1753558795411,460.0,0.00019896,2]
[375160672,1753558798619,694.51,0.00019446,2]
[375160673,1753558799032,694.51,0.0001972,2]
[375160674,1753558799495,694.51,0.00019994,2]
[375160675,1753558807851,460.0,0.00019622,2]
[375160676,1753558810844,460.0,0.00019622,2]
[375160677,1753558811449,460.0,0.00019622,2]
[375160678,1753558811706,460.0,0.00019896,2]
[375160679,1753558819116,152.56018302,0.00020001,2]
[375160680,1753558819235,460.0,0.00019622,2]
[375160681,1753558819498,460.0,0.00019896,2]
[375160682,1753558823836,460.0,0.00019446,2]
[375160683,1753558825363,508.42753486,0.00019622,2]
[375160684,1753558826042,460.0,0.00019446,2]
[375160685,1753558835226,258.95380499,0.00020099,5]
[375160686,1753558836276,460.0,0.00019622,2]
[375160687,1753558836523,547.85,0.00019896,2]
[375160688,1753558837100,271.4185371,0.00019446,2]
[375160689,1753558837124,188.5814629,0.00019446,2]
[375160690,1753558837151,288.21695894,0.00020099,5]
[375160691,1753558839054,460.0,0.00019446,2]
[375160692,1753558839379,460.0,0.00019622,2]
[375160693,1753558839646,386.76076664,0.00019896,2]
[375160694,1753558847668,460.0,0.00019436,2]
[375160695,1753558848292,460.0,0.0001971,2]
[375160696,1753558851710,150.0,0.00019481,2]
[375160697,1753558851896,460.0,0.00019984,2]
[375160698,1753558860396,462.54203478,0.00019622,2]
[375160699,1753558874936,460.0,0.00019446,2]
[375160700,1753558875582,460.0,0.0001972,2]
[375160701,1753558875980,460.0,0.00019622,2]
[375160702,1753558876766,460.0,0.00019994,2]
[375160703,1753558887334,460.0,0.00019622,2]
[375160704,1753558888868,460.0,0.00019622,2]
[375160705,1753558898186,215.41042808,0.00020069,2]
[375160706,1753558900204,607.7,0.00019623,2]
[375160707,1753558900629,607.7,0.00019897,2]
[375160708,1753558909958,564.2,0.00019622,2]
[375160709,1753558921556,460.0,0.00019622,2]
[375160710,1753558927179,460.0,0.00019622,2]
[375160711,1753558929889,393.50441132,0.00019565,2]
[375160712,1753558932447,150.0,0.00019445,2]
[375160713,1753558939956,5.38393734,0.00019215,2]
[375160714,1753558939979,10000.0,0.00019215,2]
[375160715,1753558940001,10000.0,0.00019215,2]
[375160716,1753558940026,4894.61606266,0.00019215,2]
[375160717,1753558941149,460.0,0.00019622,2]
[375160718,1753558950610,460.0,0.00019622,2]
[375160719,1753558951269,4185.38393734,0.000201,2]
[375160720,1753558951293,814.61606266,0.000201,2]
[375160721,1753558962734,7036.1603117,0.00019223,2]
[375160722,1753558968134,2149.22362564,0.000201,2]
[375160723,1753558968158,2850.77637436,0.000201,2]
[375160724,1753558968354,460.0,0.00019622,2]
[375160725,1753558972055,189.580205,0.00019377,2]
[375160726,1753558972290,189.580205,0.00019377,120]
[375160727,1753558972359,188.13149748,0.0002007,2]
[375160728,1753558972737,188.13149748,0.00020092,2]
[375160729,1753558976423,460.0,0.00019446,2]
[375160730,1753558976745,460.0,0.0001972,2]
[375160731,1753558977218,460.0,0.00019994,2]
[375160732,1753558983566,4743.38042568,0.000201,2]
[375160733,1753558983599,256.61957432,0.000201,2]
[375160734,1753558988157,460.0,0.00019622,2]
[375160735,1753558988501,549.41,0.00019436,2]
[375160736,1753558990938,570.23,0.00019446,2]
[375160737,1753558992122,570.23,0.0001972,2]
[375160738,1753558993186,570.23,0.00019994,2]
[375160739,1753558999240,5000.0,0.000201,2]
[375160740,1753559012054,460.0,0.00019622,2]
[375160741,1753559012286,460.0,0.00019896,2]
[375160742,1753559016314,1103.28042568,0.000201,2]
[375160743,1753559016340,3896.71957432,0.000201,2]
[375160744,1753559017639,150.0,0.00019488,2]
[375160745,1753559032109,5000.0,0.000201,2]
[375160746,1753559044055,173.520652,0.00013699,2]
[375160747,1753559047863,779.75977368,0.000201,2]
[375160748,1753559047886,4220.24022632,0.000201,2]
[375160749,1753559048818,460.0,0.00019622,2]
[375160751,1753559049436,460.0,0.00019896,2]
[375160752,1753559063049,4859.75977368,0.000201,2]
[375160753,1753559063074,140.24022632,0.000201,2]
[375160754,1753559070519,188.13149748,0.0002007,2]
[375160755,1753559070842,498.96,0.00019623,2]
[375160756,1753559071474,498.96,0.00019897,2]
[375160757,1753559077507,156.1949214,0.00020099,5]
[375160758,1753559078237,5000.0,0.000201,2]
[375160759,1753559079941,158.475077,0.00019202,2]
[375160760,1753559082488,314.93420197,0.00019622,2]
[375160761,1753559085161,460.0,0.00019436,2]
[375160762,1753559085649,460.0,0.0001971,2]
[375160763,1753559086136,460.0,0.00019984,2]
[375160764,1753559094485,1664.10407583,0.000201,2]
[375160765,1753559094508,3335.89592417,0.000201,2]
[375160766,1753559097315,150.0,0.00019459,2]
[375160767,1753559110156,5000.0,0.000201,2]
[375160768,1753559116285,202.50985159,0.00020069,2]
[375160769,1753559125354,1311.59422424,0.000201,2]
[375160770,1753559125378,3688.40577576,0.000201,2]
[375160771,1753559131786,2761.1325816,0.00019372,2]
[375160772,1753559140453,3550.46164264,0.000201,2]
[375160773,1753559140479,1449.53835736,0.000201,2]
[375160776,1753559156135,5000.0,0.000201,2]
[375160777,1753559166793,188.13149748,0.0002007,2]
[375160778,1753559182046,150.0,0.00019509,2]
[375160779,1753559204185,197.87053435,0.00020058,2]
[375160780,1753559205890,460.0,0.00019446,2]
[375160781,1753559206271,460.0,0.0001972,2]
[375160782,1753559206934,460.0,0.00019994,2]
[375160783,1753559226164,-197.87053434,0.00020108,2]
[375160784,1753559226186,-95.11521463,0.00020158,2]
[375160785,1753559231194,170.404012,0.00019553,2]
[375160786,1753559231567,733.04320548,0.00019565,2]
[375160787,1753559231897,366.52160274,0.00019566,2]
[375160789,1753559254148,364.49079059,0.00019623,2]
[375160790,1753559254174,95.50920941,0.00019623,2]
[375160791,1753559254840,460.0,0.00019897,2]
[375160792,1753559262303,150.0,0.00019419,2]
[375160793,1753559266440,188.13149748,0.0002007,2]
[375160794,1753559281907,9106.35929311,0.0001921,2]
[375160795,1753559282066,893.64070689,0.0001921,2]
[375160796,1753559314323,9106.35929311,0.00019219,2]
[375160797,1753559314348,634.43499569,0.00019219,2]
[375160798,1753559335345,9365.56500431,0.00019219,2]
[375160799,1753559335368,5659.72452849,0.00019219,2]
[375160801,1753559340493,150.0,0.000189,2]
[375160802,1753559342953,150.0,0.00019445,2]
[375160803,1753559349539,4040.27547151,0.000201,2]
[375160804,1753559349561,959.72452849,0.000201,2]